bitfinex-derivatives/quotes_BNBF0:USTF0_20250425
["timestamp","ask_amount","ask_price","bid_price","bid_amount"]
[1745553730364,1.1296832,601.04,600.46,0.30565733]
[1745553730565,1.1296832,601.03,600.45,0.30565733]
[1745553730768,1.1296832,601.02,600.46,0.30565329]
[1745553730967,1.1296832,601.02,600.45,0.30565329]
[1745553731267,1.1296832,601.02,600.46,0.30565329]
[1745553731467,1.1296832,601.01,600.45,0.30565329]
[1745553731668,1.1296832,601.01,600.46,0.30565329]
[1745553731970,1.1296832,601.0,600.47,0.30565329]
[1745553732167,1.1296832,600.99,600.45,0.30565329]
[1745553732867,1.1296832,600.98,600.45,0.30565329]
[1745553733367,1.1296832,600.98,600.46,0.30565329]
[1745553733570,1.1296832,600.97,600.39,0.30565329]
[1745553734167,1.1296832,600.96,600.39,0.30565329]
[1745553734472,1.1296832,600.96,600.38,1.9606617]
[1745553734769,1.1296832,600.95,600.38,1.9606617]
[1745553735469,1.1296832,600.94,600.38,1.9606617]
[1745553735870,1.1296832,600.93,600.39,1.0596617]
[1745553736369,1.1296832,600.92,600.39,1.0596617]
[1745553736969,1.1296832,600.91,600.39,1.0596617]
[1745553737372,1.1296832,600.9,600.39,1.0596617]
[1745553737771,1.25759526,602.13,600.39,1.0596617]
[1745553737772,1.1296832,600.89,600.39,1.0596617]
[1745553738369,1.1296832,600.88,600.39,1.0596617]
[1745553738575,1.1296832,600.88,600.38,0.901]
[1745553738974,1.1296832,600.87,600.38,0.901]
[1745553739574,1.1296832,600.86,600.38,0.901]
[1745553739874,1.1296832,600.85,600.38,0.901]
[1745553740269,1.1296832,600.84,600.38,0.901]
[1745553740977,1.1296832,600.83,600.38,0.901]
[1745553741677,1.1296832,600.82,600.38,0.901]
[1745553742474,1.1296832,600.81,600.38,0.901]
[1745553742778,1.1296832,600.8,600.38,0.901]
[1745553743177,1.1296832,600.79,600.38,0.901]
[1745553743679,1.1296832,600.78,600.38,0.901]
[1745553744076,1.1296832,600.77,600.38,0.901]
[1745553744372,1.1296832,600.76,600.39,0.30565105]
[1745553744973,1.1296832,600.76,600.38,0.901]
[1745553745178,1.1296832,600.75,600.39,0.30565136]
[1745553745680,1.25759526,602.62,600.39,0.30565136]
[1745553746174,1.25759526,602.36,600.39,0.30565136]
[1745553746380,1.25759526,602.36,600.4,0.30565131]
[1745553746576,1.13015416,602.35,600.39,0.30565131]
[1745553746775,1.13015416,602.35,600.4,0.30565105]
[1745553746975,1.13015416,602.35,600.39,0.30565105]
[1745553747279,1.13015416,602.34,600.4,0.30565105]
[1745553747480,1.13015416,602.34,600.39,0.30565105]
[1745553747775,1.13015416,602.33,600.4,0.30565105]
[1745553747975,1.13015416,602.33,600.41,0.30565105]
[1745553748179,1.13015416,602.32,600.39,0.30565105]
[1745553748373,1.13015416,602.31,600.4,0.30564107]
[1745553748574,1.13015416,602.31,600.39,0.30564107]
[1745553748779,1.13015416,602.31,600.4,0.30564107]
[1745553748980,1.13015416,602.31,600.39,0.30564107]
[1745553749181,1.13015416,602.3,600.39,0.30564107]
[1745553749579,1.41968127,602.3,600.39,0.30564107]
[1745553749774,1.13015416,602.29,600.39,0.30564107]
[1745553749974,1.25759526,602.05,600.48,1.0596617]
[1745553750176,1.25759526,602.05,600.49,0.30564107]
[1745553750681,1.13015416,602.04,600.49,0.30564107]
[1745553751081,1.13015416,602.03,600.49,0.30564107]
[1745553751480,1.13015416,602.03,600.48,1.0596617]
[1745553751677,1.13015416,602.02,600.49,0.30564003]
[1745553752080,1.13015416,602.01,600.49,0.30564003]
[1745553752578,1.13015416,602.0,600.5,0.942]
[1745553752786,1.13015416,602.0,600.51,0.30564003]
[1745553752983,1.13015416,601.99,600.51,0.30564003]
[1745553753183,1.13015416,601.98,600.5,0.942]
[1745553753382,1.13015416,601.98,600.51,0.30563774]
[1745553753584,1.41970536,601.98,600.51,0.30563774]
[1745553753781,1.13015416,601.97,600.51,0.30563774]
[1745553754086,1.13015416,601.96,600.51,0.30563774]
[1745553754286,1.13015416,601.95,600.51,0.30563774]
[1745553754887,1.13015416,601.94,600.51,0.30563774]
[1745553755387,1.13015416,601.93,600.51,0.30563774]
[1745553755587,1.13015416,601.92,600.5,0.942]
[1745553756180,1.13015416,601.91,600.5,0.942]
[1745553756688,1.13015416,601.9,600.5,0.942]
[1745553757386,1.13015416,601.89,600.5,0.942]
[1745553757588,1.13015416,601.88,600.5,0.942]
[1745553758390,1.13015416,601.87,600.5,0.942]
[1745553758591,1.41971861,601.87,600.5,0.942]
[1745553758790,1.13015416,601.86,600.5,0.942]
[1745553759291,1.13015416,601.85,600.5,0.942]
[1745553759590,1.13015416,601.84,600.5,0.942]
[1745553760092,1.13015416,601.83,600.5,0.942]
[1745553760592,1.13015416,601.82,600.5,0.942]
[1745553760887,1.13015416,601.81,600.5,0.942]
[1745553761092,1.13015416,601.81,600.51,0.30563524]
[1745553761387,1.13015416,601.8,600.5,0.942]
[1745553761589,1.13015416,601.8,600.51,0.30562931]
[1745553761792,1.13015416,601.79,600.51,0.30562931]
[1745553762890,1.13015416,601.78,600.51,0.30562931]
[1745553763087,1.13015416,601.78,600.52,0.30562823]
[1745553763388,1.13015416,601.77,600.53,0.30562823]
[1745553763592,1.13015416,601.77,600.51,0.30562823]
[1745553764094,1.13015416,601.76,600.51,0.30562823]
[1745553764294,1.13015416,601.75,600.51,0.30562823]
[1745553764894,1.13015416,601.75,600.52,1.036]
[1745553765194,1.13015416,601.74,600.53,0.30562823]
[1745553765389,1.13015416,601.73,600.53,0.30562823]
[1745553766093,1.13015416,601.72,600.53,0.30562823]
[1745553766496,1.13015416,601.71,600.53,0.30562823]
[1745553767094,1.13015416,601.7,600.53,0.30562823]
[1745553767495,1.13015416,601.69,600.53,1.29162823]
[1745553767689,1.13015416,601.68,600.54,0.30562823]
[1745553767889,1.13015416,601.68,600.53,0.986]
[1745553768089,1.13015416,601.68,600.54,0.30559805]
[1745553768293,1.13015416,601.67,600.54,0.30559805]
[1745553768997,1.13015416,601.66,600.54,0.30559805]
[1745553769596,1.13015416,601.65,600.54,0.30559805]
[1745553769996,1.13015416,601.64,600.54,0.30559805]
[1745553770593,1.13015416,601.63,600.54,0.30559805]
[1745553771393,1.13015416,601.62,600.54,0.30559805]
[1745553771799,1.13015416,601.61,600.54,0.30559805]
[1745553772597,1.13015416,601.6,600.54,0.30559805]
[1745553773195,1.13015416,601.59,600.54,0.30559805]
[1745553773900,1.13015416,601.58,600.54,0.30559805]
[1745553774095,1.13015416,601.57,600.54,0.30559805]
[1745553774298,1.13015416,601.57,600.54,1.52359805]
[1745553774498,1.13015416,601.57,600.54,1.218]
[1745553774695,1.13015416,601.56,600.55,0.30559513]
[1745553775000,1.13015416,601.55,600.55,0.30559513]
[1745553775402,1.25759526,602.39,600.55,0.30559513]
[1745553775403,1.13015416,601.54,600.55,0.30559513]
[1745553775898,1.13015416,601.53,600.55,0.30559513]
[1745553776505,1.13015416,601.52,600.55,0.30559513]
[1745553777299,1.13015416,601.51,600.55,0.30559513]
[1745553777804,1.13015416,601.5,600.55,0.30559513]
[1745553778304,1.13015416,601.49,600.55,0.30559513]
[1745553778500,1.13015416,601.48,600.55,0.30559513]
[1745553778903,1.13015416,601.47,600.55,0.30559513]
[1745553779406,1.13015416,601.46,600.54,1.218]
[1745553779607,1.13015416,601.46,600.55,0.30560213]
[1745553780005,1.13015416,601.45,600.55,0.30560213]
[1745553780310,1.13015416,601.45,600.55,1.50160213]
[1745553780503,1.25759526,602.37,600.55,1.50160213]
[1745553780504,1.13015416,601.44,600.56,0.30560213]
[1745553780808,1.13015416,601.43,600.56,0.30560213]
[1745553781809,1.13015416,601.42,600.56,0.30560213]
[1745553782309,1.13015416,601.41,600.56,0.30560213]
[1745553782810,1.13015416,601.4,600.56,0.30560213]
[1745553783010,1.13015416,601.39,600.56,0.30560213]
[1745553783809,1.13015416,601.38,600.55,1.196]
[1745553784014,1.13015416,601.38,600.56,0.30560222]
[1745553784814,1.13015416,601.37,600.56,0.30560222]
[1745553785414,1.13015416,601.36,600.55,1.196]
[1745553785608,1.13015416,601.36,600.56,0.30560401]
[1745553786015,1.13015416,601.35,600.56,0.30560401]
[1745553786511,1.13015416,601.35,600.56,1.36526571]
[1745553786709,1.13015416,601.34,600.57,0.30560401]
[1745553787216,1.13015416,601.33,600.57,0.30560401]
[1745553788013,1.13015416,601.32,600.57,0.30560401]
[1745553788616,1.13015416,601.31,600.57,0.30560401]
[1745553788816,1.13015416,601.31,600.58,0.30560401]
[1745553789016,1.13015416,601.31,600.57,0.30560401]
[1745553789312,1.13015416,601.3,600.58,0.30560401]
[1745553789516,1.13015416,601.29,600.57,0.30560401]
[1745553789714,1.13015416,601.29,600.58,0.30560401]
[1745553789919,1.13015416,601.29,600.57,0.30560401]
[1745553790118,1.13015416,601.28,600.58,0.30560401]
[1745553790318,1.13015416,601.28,600.57,1.0596617]
[1745553790518,1.13015416,601.27,600.58,0.30560102]
[1745553790710,1.13015416,601.26,600.58,0.30560102]
[1745553791119,1.13015416,601.25,600.58,0.30560102]
[1745553791915,1.13015416,601.24,600.58,0.30560102]
[1745553792619,1.13015416,601.23,600.59,0.30560102]
[1745553792819,1.13015416,601.23,600.57,0.30560102]
[1745553793119,1.13015416,601.22,600.57,0.30560102]
[1745553793419,1.13015416,601.21,600.57,0.30560102]
[1745553794220,1.13015416,601.2,600.57,0.30560102]
[1745553794720,1.13015416,601.19,600.57,0.30560102]
[1745553795122,1.13015416,601.19,600.56,1.0596617]
[1745553795321,1.13015416,601.18,600.57,0.30560271]
[1745553795922,1.13015416,601.17,600.57,1.36526441]
[1745553796121,1.13015416,601.17,600.58,0.30560271]
[1745553796317,1.13015416,601.16,600.58,0.30560271]
[1745553796519,1.13015416,601.15,600.58,0.30560271]
[1745553796717,1.13015416,601.15,600.57,1.0596617]
[1745553796916,1.13015416,601.14,600.58,0.30560092]
[1745553797422,1.13015416,601.13,600.58,0.30560092]
[1745553797719,1.13015416,601.12,600.57,1.0596617]
[1745553798324,1.13015416,601.11,600.57,1.0596617]
[1745553798523,1.13015416,601.1,600.57,1.0596617]
[1745553798924,1.13015416,601.09,600.57,1.0596617]
[1745553799225,1.13015416,601.08,600.53,0.986]
[1745553799423,1.13015416,601.08,600.54,0.30560273]
[1745553799723,1.13015416,601.07,600.54,0.30560273]
[1745553799926,1.13015416,601.07,600.53,0.986]
[1745553800127,1.13015416,601.06,600.54,0.30560293]
[1745553800328,1.13015416,601.05,600.54,0.30560293]
[1745553800621,1.13015416,601.04,600.54,0.30560293]
[1745553800826,1.13015416,601.04,600.53,0.986]
[1745553801227,1.13015416,601.03,600.53,0.986]
[1745553801527,1.13015416,601.02,600.53,0.986]
[1745553802228,1.13015416,601.01,600.53,0.986]
[1745553802529,1.13015416,601.0,600.53,0.986]
[1745553803028,1.13015416,600.99,600.53,0.986]
[1745553803627,1.13015416,600.98,600.53,0.986]
[1745553804128,1.13015416,600.98,600.54,0.30560119]
[1745553804329,1.13015416,600.97,600.54,0.30560119]
[1745553804527,1.13015416,600.97,600.53,0.986]
[1745553804728,1.13015416,600.96,600.54,0.30560092]
[1745553805529,1.13015416,600.95,600.54,0.30560092]
[1745553806331,1.13015416,600.95,600.55,0.30560092]
[1745553806528,1.13015416,600.94,600.56,0.30560092]
[1745553806732,1.13015416,600.94,600.53,0.30560092]
[1745553806929,1.13015416,600.93,600.54,0.30560092]
[1745553807129,1.13015416,600.93,600.55,0.30560092]
[1745553807432,1.13015416,600.92,600.56,0.30560092]
[1745553807833,1.13015416,600.92,600.57,0.30560092]
[1745553808128,1.13015416,600.91,600.58,0.30560092]
[1745553808333,1.13015416,600.91,600.53,0.30560092]
[1745553808534,1.13015416,600.9,600.54,0.30560092]
[1745553808735,1.13015416,600.9,600.53,0.30560092]
[1745553809229,1.13015416,600.89,600.53,0.30560092]
[1745553809530,1.13015416,600.88,600.53,0.30560092]
[1745553810134,1.13015416,600.87,600.53,0.30560092]
[1745553810735,1.13015416,600.86,600.53,0.30560092]
[1745553811036,1.13015416,600.85,600.53,0.30560092]
[1745553811536,1.13015416,600.84,600.53,0.30560092]
[1745553811934,1.13015416,600.83,600.53,0.30560092]
[1745553812537,1.13015416,600.83,600.53,1.36526262]
[1745553812733,1.13015416,600.82,600.54,0.30560092]
[1745553813541,1.13015416,600.81,600.54,0.30560092]
[1745553813736,1.25759526,602.24,600.54,0.30560092]
[1745553813934,1.13095641,602.23,600.53,1.0596617]
[1745553814342,0.28948496,602.22,600.53,1.0596617]
[1745553814642,1.13095641,602.21,600.53,1.0596617]
[1745553815043,1.13095641,602.2,600.53,1.0596617]
[1745553815543,0.28948857,602.19,600.53,1.0596617]
[1745553815743,1.13095641,602.18,600.53,1.0596617]
[1745553816045,1.13095641,602.17,600.53,1.0596617]
[1745553816341,1.13095641,602.16,600.53,2.3436617]
[1745553816742,1.13095641,602.15,600.53,2.3436617]
[1745553817345,1.13095641,602.14,600.53,2.3436617]
[1745553817542,1.13095641,602.14,600.53,1.284]
[1745553817948,1.13095641,602.13,600.53,1.284]
[1745553818447,0.28948737,602.12,600.53,1.284]
[1745553818744,1.13095641,602.11,600.53,1.284]
[1745553819147,1.13095641,602.1,600.53,1.284]
[1745553819547,1.13095641,602.09,600.53,1.284]
[1745553819949,1.13095641,602.08,600.53,1.284]
[1745553821249,1.13095641,602.07,600.53,1.284]
[1745553821549,1.13095641,602.07,600.54,0.30555854]
[1745553821747,1.13095641,602.06,600.54,0.30555854]
[1745553822148,1.13095641,602.05,600.54,0.30555854]
[1745553822950,1.13095641,602.04,600.54,0.30555854]
[1745553823352,1.13095641,602.03,600.54,0.30555854]
[1745553823853,1.13095641,602.02,600.54,0.30555854]
[1745553824055,1.13095641,602.02,600.58,1.0596617]
[1745553824250,1.13095641,602.02,600.59,0.30555854]
[1745553824553,1.13095641,602.01,600.59,1.53655854]
[1745553824754,1.13095641,602.01,600.6,0.30555854]
[1745553824951,1.13095641,602.0,600.6,0.30555854]
[1745553825554,1.13095641,601.99,600.6,0.30555854]
[1745553825856,1.13095641,601.99,600.61,1.179]
[1745553826051,1.13095641,601.99,600.62,0.30555854]
[1745553826354,1.13010664,601.98,600.62,0.30555854]
[1745553826754,1.13010664,601.98,600.61,1.179]
[1745553826954,1.13010664,601.98,600.62,0.30553338]
[1745553827154,1.13010664,601.97,600.62,0.30553338]
[1745553828255,1.13010664,601.96,600.62,0.30553338]
[1745553828953,1.13010664,601.95,600.62,0.30553338]
[1745553829549,1.13010664,601.94,600.62,0.30553338]
[1745553830057,1.13010664,601.93,600.62,0.30553338]
[1745553830453,1.13010664,601.92,600.62,0.30553338]
[1745553830955,1.13010664,601.91,600.62,0.30553338]
[1745553831456,1.13010664,601.9,600.62,0.30553338]
[1745553832056,1.13010664,601.89,600.62,0.30553338]
[1745553832555,1.13010664,601.88,600.62,0.30553338]
[1745553833151,1.13010664,601.87,600.62,0.30553338]
[1745553833657,1.13010664,601.86,600.62,0.30553338]
[1745553834157,1.13010664,601.85,600.62,0.30553338]
[1745553834660,1.13010664,601.84,600.62,0.30553338]
[1745553835159,1.13010664,601.83,600.62,0.30553338]
[1745553835761,1.13010664,601.82,600.62,0.30553338]
[1745553836259,1.13010664,601.81,600.62,0.30553338]
[1745553836459,1.13010664,601.81,600.63,0.3055355]
[1745553836662,1.13010664,601.8,600.62,0.3055355]
[1745553836856,1.13010664,601.8,600.63,0.3055355]
[1745553837056,1.13010664,601.79,600.62,0.3055355]
[1745553837260,1.13010664,601.78,600.64,0.882]
[1745553837462,1.13010664,601.78,600.65,0.3055355]
[1745553837861,1.13010664,601.78,600.64,0.882]
[1745553837862,1.13010664,601.77,600.64,0.882]
[1745553838264,1.13010664,601.77,600.66,0.3055085]
[1745553838465,1.13010664,601.76,600.67,0.3055085]
[1745553838666,1.13010664,601.76,600.66,0.3055085]
[1745553838960,1.13010664,601.76,600.67,0.3055085]
[1745553839165,1.13010664,601.75,600.66,0.3055085]
[1745553839358,1.13010664,601.74,600.67,0.3055085]
[1745553839562,1.13010664,601.74,600.65,1.309]
[1745553839761,1.13010664,601.73,600.65,1.309]
[1745553839963,1.13010664,601.72,600.66,0.30550196]
[1745553840567,1.13010664,601.71,600.66,0.30550196]
[1745553840760,1.13010664,601.71,600.65,1.309]
[1745553840959,1.13010664,601.71,600.66,0.3055053]
[1745553841261,1.13010664,601.7,600.66,0.3055053]
[1745553841665,1.13010664,601.69,600.66,0.3055053]
[1745553842061,1.13010664,601.69,600.65,1.309]
[1745553842366,1.13010664,601.68,600.66,0.30550839]
[1745553842762,1.13010664,601.67,600.66,0.30550839]
[1745553842965,1.13010664,601.67,600.65,1.309]
[1745553843163,1.13010664,601.66,600.65,1.309]
[1745553843364,1.13010664,601.65,600.66,1.064]
[1745553843767,1.13010664,601.64,600.66,1.064]
[1745553844369,1.13010664,601.63,600.66,1.064]
[1745553844867,1.13010664,601.62,600.66,1.064]
[1745553845568,1.13010664,601.61,600.66,1.064]
[1745553845967,1.13010664,601.6,600.66,1.064]
[1745553846568,1.13010664,601.59,600.66,1.064]
[1745553847068,1.13010664,601.58,600.66,1.064]
[1745553847569,1.13010664,601.57,600.66,1.064]
[1745553847769,1.13010664,601.56,600.66,1.064]
[1745553848470,1.13010664,601.55,600.66,1.064]
[1745553848670,1.13010664,601.54,600.66,1.064]
[1745553849370,1.25759526,602.93,600.66,1.064]
[1745553849371,1.13010664,601.53,600.66,1.064]
[1745553849871,1.13010664,601.52,600.66,1.064]
[1745553850171,1.13010664,601.51,600.66,1.064]
[1745553850372,1.13010664,601.51,600.67,0.30551147]
[1745553850571,1.13010664,601.5,600.67,0.30551147]
[1745553850866,1.13010664,601.49,600.67,0.30551147]
[1745553851467,1.13010664,601.48,600.67,0.30551147]
[1745553851671,1.13010664,601.48,600.66,1.064]
[1745553851866,1.13010664,601.48,600.67,0.30551716]
[1745553852370,1.13010664,601.47,600.67,0.30551716]
[1745553852970,1.13010664,601.46,600.67,0.30551716]
[1745553853569,1.13010664,601.45,600.67,0.30551716]
[1745553853766,1.13010664,601.44,600.67,0.30551716]
[1745553854169,1.13010664,601.43,600.67,0.30551716]
[1745553854572,1.13010664,601.42,600.73,1.0596617]
[1745553854870,1.13010664,601.42,600.74,0.30551716]
[1745553855071,1.13010664,601.41,600.74,0.30551716]
[1745553855474,1.13010664,601.4,600.74,0.30551716]
[1745553855969,1.13010664,601.39,600.74,0.30551716]
[1745553856369,1.13010664,601.38,600.74,0.30551716]
[1745553856773,1.13010664,601.37,600.74,1.36517886]
[1745553856967,1.13010664,601.37,600.75,0.30551716]
[1745553857370,1.13010664,601.36,600.75,0.30551716]
[1745553858274,1.13010664,601.35,600.75,0.30551716]
[1745553859075,1.13010664,601.34,600.75,0.30551716]
[1745553859478,1.13010664,601.34,600.73,0.30551716]
[1745553859679,1.13010664,601.33,600.74,0.30551716]
[1745553859879,1.12827587,601.32,600.73,0.30551716]
[1745553860077,1.12827587,601.31,600.74,0.30551716]
[1745553860278,1.12827587,601.31,600.73,0.30551716]
[1745553860478,1.12827587,601.3,600.75,0.30551716]
[1745553860675,1.12827587,601.3,600.76,0.30551716]
[1745553860874,1.12827587,601.29,600.73,0.30551716]
[1745553861381,1.12827587,601.28,600.73,0.30551716]
[1745553861573,1.12827587,601.28,600.73,1.36517886]
[1745553861778,1.12827587,601.27,600.74,0.30551716]
[1745553862576,1.12827587,601.26,600.74,0.30551716]
[1745553862780,1.12827587,601.26,600.73,1.0596617]
[1745553862980,1.12827587,601.25,600.74,0.30550846]
[1745553863476,1.12827587,601.24,600.74,0.30550846]
[1745553863881,1.12827587,601.23,600.74,0.30550846]
[1745553864479,1.12827587,601.23,600.75,0.30550819]
[1745553864674,1.12827587,601.23,600.74,0.30550819]
[1745553864880,1.12827587,601.22,600.74,0.30550819]
[1745553865377,1.12827587,601.21,600.74,0.30550819]
[1745553865978,1.12827587,601.2,600.73,1.0596617]
[1745553866177,1.12827587,601.2,600.74,0.30550787]
[1745553866382,1.12827587,601.19,600.74,0.30550787]
[1745553866882,1.12827587,601.18,600.74,1.36516957]
[1745553867082,1.12827587,601.18,600.75,0.30550787]
[1745553867783,1.12827587,601.17,600.75,0.30550787]
[1745553868083,1.12827587,601.16,600.75,0.30550787]
[1745553868682,1.12827587,601.15,600.75,0.30550787]
[1745553869082,1.12827587,601.15,600.74,1.0596617]
[1745553869284,1.12827587,601.15,600.75,0.30548607]
[1745553869485,1.12827587,601.14,600.82,1.0596617]
[1745553869680,1.12827587,601.14,600.83,0.30548607]
[1745553869878,1.12827587,601.13,600.83,0.30548607]
[1745553870378,1.12827587,601.12,600.83,0.30548607]
[1745553870682,1.12827587,601.12,600.82,1.0596617]
[1745553870982,1.12827587,601.11,600.83,0.30549317]
[1745553871283,1.12827587,601.1,600.83,0.30549317]
[1745553871683,1.12827587,601.09,600.83,0.30549317]
[1745553871882,1.25759526,602.33,600.83,0.30549317]
[1745553872279,1.12925791,602.32,600.81,0.30549317]
[1745553872483,1.41864297,602.32,600.81,0.30549317]
[1745553873184,1.12925791,602.31,600.81,0.30549317]
[1745553873780,1.12925791,602.3,600.8,1.0596617]
[1745553873979,1.12925791,602.29,600.81,0.30548166]
[1745553874379,1.12925791,602.29,600.74,0.30548166]
[1745553874682,1.12925791,602.28,600.75,0.30548166]
[1745553874886,1.12925791,602.28,600.76,0.30548166]
[1745553875081,1.12925791,602.27,600.77,0.30548166]
[1745553875388,1.12925791,602.27,600.78,0.30548166]
[1745553875585,1.12925791,602.26,600.74,0.30548166]
[1745553875785,1.4186562,602.26,600.75,0.30548166]
[1745553875984,1.4186562,602.26,600.74,0.30548166]
[1745553876282,1.12925791,602.25,600.74,0.30548166]
[1745553876891,1.12925791,602.24,600.75,0.30548166]
[1745553877089,1.12925791,602.24,600.7,0.30548166]
[1745553877289,1.12925791,602.23,600.7,0.30548166]
[1745553878090,1.12925791,602.22,600.7,0.30548166]
[1745553878685,1.25759526,602.59,600.7,0.30548166]
[1745553878686,1.12925791,602.21,600.7,0.30548166]
[1745553879190,1.12925791,602.2,600.7,0.30548166]
[1745553879586,1.12925791,602.19,600.7,0.30548166]
[1745553879890,1.12925791,602.19,600.74,1.0596617]
[1745553880191,1.12925791,602.18,600.74,1.0596617]
[1745553880491,1.12925791,602.18,600.75,0.3054826]
[1745553880789,1.12925791,602.17,600.75,0.3054826]
[1745553881191,1.12925791,602.16,600.75,0.3054826]
[1745553881691,1.12925791,602.15,600.74,1.0596617]
[1745553881890,1.12925791,602.15,600.77,1.0596617]
[1745553882085,1.12925791,602.14,600.78,0.3054838]
[1745553882492,1.12925791,602.13,600.78,0.3054838]
[1745553882886,1.12925791,602.12,600.78,0.3054838]
[1745553883187,1.12925791,602.11,600.78,0.3054838]
[1745553883391,1.12925791,602.11,600.79,0.30548359]
[1745553883593,1.12925791,602.1,600.78,0.30548359]
[1745553883792,1.12925791,602.1,600.79,0.30548359]
[1745553883991,1.12925791,602.1,600.77,1.0596617]
[1745553883992,1.12925791,602.1,600.8,0.30548359]
[1745553884193,1.12925791,602.09,600.78,0.30548359]
[1745553884391,1.12925791,602.09,600.79,0.30548359]
[1745553884595,1.12925791,602.09,600.78,0.30548359]
[1745553884794,1.12925791,602.08,600.69,1.0596617]
[1745553884994,1.12925791,602.08,600.7,0.30548359]
[1745553885290,1.12925791,602.07,600.7,0.30548359]
[1745553885694,1.12925791,602.06,600.7,0.30548359]
[1745553886297,1.12925791,602.05,600.7,0.30548359]
[1745553886497,1.12925791,602.05,600.71,0.30548334]
[1745553886698,1.12925791,602.05,600.72,0.30548334]
[1745553886892,1.12925791,602.05,600.7,0.30548334]
[1745553887091,1.12925791,602.04,600.71,0.30548334]
[1745553887293,1.12925791,602.03,600.7,0.30548334]
[1745553887495,1.12925791,602.03,600.71,0.30548334]
[1745553887695,1.12925791,602.03,600.32,1.0596617]
[1745553887696,1.12925791,602.02,600.7,0.30548334]
[1745553887895,1.12925791,602.02,600.67,0.30548334]
[1745553888097,1.12925791,602.01,600.68,0.3054838]
[1745553888299,1.12925791,602.0,600.67,0.3054838]
[1745553888698,1.12925791,601.99,600.67,0.3054838]
[1745553889197,1.12925791,601.98,600.67,0.3054838]
[1745553889502,1.12925791,601.97,600.67,0.3054838]
[1745553889799,1.12925791,601.96,600.67,0.3054838]
[1745553890201,1.12925791,601.95,600.67,0.3054838]
[1745553890698,1.12925791,601.94,600.68,0.30548316]
[1745553890897,1.12925791,601.94,600.67,0.30548316]
[1745553891095,1.12925791,601.94,600.66,0.28944523]
[1745553891400,1.12925791,601.93,600.67,0.30548346]
[1745553891703,1.12925791,601.92,600.67,0.30548346]
[1745553892402,1.12925791,601.91,600.67,0.30548346]
[1745553892603,1.12925791,601.91,600.67,1.36514516]
[1745553892802,1.12925791,601.91,600.68,0.30544416]
[1745553892997,1.12925791,601.9,600.68,0.30544416]
[1745553893297,1.12925791,601.89,600.68,0.30544416]
[1745553893703,1.12925791,601.88,600.68,0.30544416]
[1745553894104,1.12925791,601.87,600.68,0.30544416]
[1745553894302,1.12925791,601.87,600.69,0.30544202]
[1745553894503,1.12925791,601.86,600.68,0.30544202]
[1745553895200,1.12925791,601.85,600.68,0.30544202]
[1745553895504,1.12925791,601.84,600.68,0.30544202]
[1745553896301,1.12925791,601.83,600.68,0.30544202]
[1745553896907,1.12925791,601.82,600.68,0.30544202]
[1745553897406,1.12925791,601.82,600.67,0.28943079]
[1745553897407,1.12925791,601.81,600.69,0.30543027]
[1745553897709,1.12925791,601.8,600.7,0.30543027]
[1745553897900,1.12925791,601.8,600.68,0.30543027]
[1745553898508,1.12925791,601.79,600.68,0.30543027]
[1745553898702,1.12925791,601.78,600.68,0.30543027]
[1745553898902,1.12925791,601.78,600.69,0.30540338]
[1745553899105,1.12925791,601.78,600.68,0.30540338]
[1745553899304,1.12925791,601.78,600.64,1.0596617]
[1745553899305,1.12925791,601.77,600.69,0.30540338]
[1745553899503,1.12925791,601.77,600.65,0.30540338]
[1745553899704,1.12925791,601.77,600.67,0.28942356]
[1745553899904,1.12925791,601.76,600.68,0.30540338]
[1745553900102,1.12925791,601.76,600.79,1.0596617]
[1745553900304,1.12925791,601.76,600.8,0.30540338]
[1745553900603,1.12925791,601.75,600.8,0.30540338]
[1745553901109,1.25759526,602.81,600.79,1.0596617]
[1745553901110,1.12925791,601.74,600.79,1.0596617]
[1745553901302,1.12925791,601.74,600.8,0.30539357]
[1745553901507,1.12925791,601.74,600.81,0.30539357]
[1745553901706,1.12925791,601.74,600.82,0.30539357]
[1745553901904,1.12925791,601.74,600.83,0.30539357]
[1745553902107,1.12925791,601.73,600.84,0.30539357]
[1745553902307,1.12925791,601.73,600.8,0.30539357]
[1745553902508,1.12925791,601.73,600.81,0.30539357]
[1745553902709,1.12925791,601.73,600.82,0.30539357]
[1745553902909,1.12925791,601.73,600.8,1.0596617]
[1745553903110,1.12925791,601.72,600.81,0.30540895]
[1745553903509,1.12925791,601.71,600.81,0.30540895]
[1745553904009,1.12925791,601.7,600.81,0.30540895]
[1745553904609,1.12925791,601.69,600.81,0.30540895]
[1745553905213,1.12925791,601.68,600.81,0.30540895]
[1745553905606,1.12925791,601.68,600.77,0.28941875]
[1745553905806,1.12925791,601.67,600.78,0.30540895]
[1745553906010,1.12925791,601.66,600.78,0.30540895]
[1745553906411,1.12925791,601.65,600.78,0.30540895]
[1745553906711,1.12925791,601.64,600.78,0.30540895]
[1745553907615,1.12925791,601.63,600.78,0.30540895]
[1745553907915,1.12925791,601.62,600.79,0.30540351]